[Event "WYCC U14 Girls 2019"]
[Site "Mumbai"]
[Date "2019.10.10"]
[Round "9.12"]
[White "Swara Lakshmi S Nair"]
[Black "Lhotska, Anna"]
[Result "1-0"]
[ECO "B90"]
[WhiteElo "1536"]
[BlackElo "1897"]
[Annotator "NA"]
[PlyCount "55"]
[EventDate "2019.10.02"]
[EventType "swiss"]
[EventCountry "IND"]
[SourceTitle "playchess.com"]
[Source "ChessBase"]
[SourceQuality "1"]
[TimeControl "40/5400+30:1800+30"]

1. e4 {[%emt 0:00:11]} c5 {[%emt 0:00:00]} 2. Nf3 {[%emt 0:01:25]} d6 {[%emt 0:00:00]} 3. d4 {[%emt 0:01:10]} cxd4 {[%emt 0:00:00]} 4. Nxd4 {[%emt 0:00:39]} Nf6 {[%emt 0:00:03]} 5. Nc3 {[%emt 0:00:07]} a6 {[%emt 0:00:08]} 6. Bc4 {[%emt 0:01:33]} e6 {[%emt 0:00:14]} 7. O-O {[%emt 0:00:36]} b5 {[%emt 0:00:15]} 8. Bb3 {[%emt 0:02:39]} Be7 {[%emt 0:00:25]} 9. f4 {[%emt 0:01:31]} O-O {[%emt 0:00:44]} 10. f5 {[%emt 0:10:10]} b4 {[%emt 0:02:03]} 11. Na4 {[%emt 0:04:18]} e5 {[%emt 0:00:35]} 12. Ne2 {[%emt 0:02:14]} Bb7 {[%emt 0:02:42]} 13. Ng3 {[%emt 0:04:33]} Nbd7 {[%emt 0:06:04]} 14. Qe1 {[%emt 0:13:03]} a5 {[%emt 0:01:17]} 15. Bg5 {[%emt 0:05:22]} h6 {[%emt 0:05:28]} 16. Bxf6 {[%emt 0:03:05]} Nxf6 {[%emt 0:00:38]} 17. c3 {[%emt 0:02:18]} Bc6 18. Rd1 {[%emt 0:09:50]} Qd7 {[%emt 0:04:49]} 19. Ra1 Qd8 {[%emt 0:00:30]} 20. Rd1 {[%emt 0:01:00]} Qd7 21. cxb4 {[%emt 0:07:45]} Bxa4 {[%emt 0:08:16]} 22. bxa5 {[%emt 0:00:06]} Bxb3 {[%emt 0:00:17]} 23. axb3 {[%emt 0:00:06]} Qb5 {[%emt 0:00:18]} 24. b4 {[%emt 0:00:19]} Rfb8 {[%emt 0:00:13]} 25. Rc1 {[%emt 0:00:10]} Qxb4 {[%emt 0:01:02]} 26. Rc8+ {[%emt 0:00:00] Qb5 Rc1 Qb4} Rxc8 {[%emt 0:11:08] Kh7 Rc1 Kg8 Rc8+ Kh7} 27. Qxb4 {[%emt 0:00:14] Rxb4 Rxa8} d5 {[%emt 0:04:02]} 28. Rc1 {[%emt 0:07:22]} 1-0

[Event "WYCC U14 Girls 2019"]
[Site "Mumbai"]
[Date "2019.10.11"]
[Round "10.1"]
[White "Roebers, Eline"]
[Black "Mungunzul, Bat-Erdene"]
[Result "0-1"]
[ECO "C45"]
[WhiteElo "2083"]
[BlackElo "1912"]
[Annotator "NA"]
[PlyCount "138"]
[EventDate "2019.10.02"]
[EventType "swiss"]
[EventCountry "IND"]
[SourceTitle "playchess.com"]
[Source "ChessBase"]
[SourceQuality "1"]
[TimeControl "40/5400+30:1800+30"]

1. e4 {[%emt 0:00:00]} e5 {[%emt 0:00:00]} 2. Nf3 {[%emt 0:00:00]} Nc6 {[%emt 0:00:00]} 3. d4 {[%emt 0:00:09]} exd4 {[%emt 0:00:02]} 4. Nxd4 {[%emt 0:00:06]} Bc5 {[%emt 0:00:17]} 5. Nb3 {[%emt 0:00:17]} Bb6 {[%emt 0:00:54]} 6. Nc3 {[%emt 0:00:32]} d6 {[%emt 0:02:14]} 7. Qe2 {[%emt 0:02:11]} Nge7 {[%emt 0:06:47] C45: Scotch Game} 8. Be3 {[%emt 0:02:10]} Be6 {[%emt 0:01:29]} (8... O-O 9. O-O-O f5 10. f4 fxe4 11. g3 Bxe3+ 12. Qxe3 Nf5 13. Bc4+ Kh8 14. Qe2 e3 15. Rhf1 {1-0 (39) Navara,D (2739)-Laznicka,V (2670) Prague 2019}) 9. O-O-O {[%emt 0:05:07]} Ng6 {[%emt 0:12:30]} 10. h3 $146 {[%emt 0:12:19]} ({Predecessor:} 10. f4 Bxb3 11. cxb3 Bxe3+ 12. Qxe3 Qh4 13. g3 Qh5 14. Nb5 O-O 15. Rd5 {1-0 (29) Leao,T (1995)-Friedrich,C (1656) Caioba 2017}) 10... Qe7 {[%emt 0:20:53]} 11. g3 {[%emt 0:03:41]} Nge5 {[%emt 0:04:19]} 12. f4 {[%emt 0:06:35]} Nc4 {[%emt 0:02:24]} 13. Bxb6 {[%emt 0:03:31]} Nxb6 {[%emt 0:00:22]} 14. Nd4 {[%emt 0:11:14]} Nc4 15. Nb3 Nb6 {[%emt 0:01:00]} 16. Nd4 {[%emt 0:01:00]} Nxd4 {[%emt 0:09:57]} 17. Rxd4 {[%emt 0:00:05]} f6 {[%emt 0:00:26]} 18. Bg2 {[%emt 0:03:09]} O-O-O {[%emt 0:03:33]} 19. Rhd1 {[%emt 0:02:12]} Rhe8 {[%emt 0:03:34]} 20. Qf3 {[%emt 0:03:20]} c6 $14 {[%emt 0:01:00]} 21. a4 {[%emt 0:12:42]} Kb8 {[%emt 0:08:37]} 22. Qd3 {[%emt 0:20:30]} Nc8 {[%emt 0:03:03]} 23. a5 {[%emt 0:02:09]} c5 {[%emt 0:06:30]} 24. Ra4 {[%emt 0:00:25]} a6 {[%emt 0:00:20]} 25. b4 {[%emt 0:07:11]} Na7 {[%emt 0:04:55]} 26. Nd5 {[%emt 0:01:49]} Bxd5 {[%emt 0:01:20]} 27. Qxd5 {[%emt 0:00:08]} Nc6 {[%emt 0:00:16]} 28. c3 {[%emt 0:00:47]} cxb4 {[%emt 0:01:00]} 29. cxb4 {[%emt 0:00:03]} Qc7 {[%emt 0:00:09]} 30. Kb2 {[%emt 0:00:49]} Ne7 {[%emt 0:01:14]} 31. Qd3 {[%emt 0:00:36]} Qd7 {[%emt 0:02:14]} 32. Raa1 {[%emt 0:00:23]} Nc8 {[%emt 0:00:28]} 33. Rac1 {[%emt 0:00:35]} Re7 {[%emt 0:00:24]} 34. Rc4 {[%emt 0:00:34]} Na7 {[%emt 0:01:19]} 35. Kb3 {[%emt 0:00:30]} Nb5 {[%emt 0:00:42]} 36. Rc2 {[%emt 0:00:31]} Rc8 {[%emt 0:01:10]} 37. Rdc1 {[%emt 0:00:29]} Qe6+ {[%emt 0:00:36]} 38. Kb2 {[%emt 0:00:28]} Rd8 {[%emt 0:00:42]} 39. Qc4 {[%emt 0:00:38]} Qd7 {[%emt 0:00:46]} 40. Qd5 {[%emt 0:00:29]} Qe6 {[%emt 0:01:05]} 41. Qxe6 {[%emt 0:30:21]} Rxe6 {[%emt 0:30:07]} 42. Rc4 {[%emt 0:00:36]} g6 {[%emt 0:00:29]} 43. Rd1 {[%emt 0:00:00]} Rde8 {[%emt 0:00:00]} 44. g4 {[%emt 0:00:00]} g5 {[%emt 0:00:00]} 45. fxg5 {[%emt 0:00:00]} fxg5 {[%emt 0:00:00]} 46. Rc2 {[%emt 0:00:00]} Rf6 {[%emt 0:00:00]} 47. Rd5 {[%emt 0:00:00]} Re5 {[%emt 0:00:00]} 48. Rdd2 {[%emt 0:00:00]} Re8 {[%emt 0:00:00]} 49. Rd5 {[%emt 0:00:00]} Ref8 {[%emt 0:00:00]} 50. Rf5 {[%emt 0:03:56]} Nd4 {[%emt 0:00:00]} 51. Rxf6 {[%emt 0:00:15]} Rxf6 {[%emt 0:00:00]} 52. Rd2 {[%emt 0:00:44]} Nc6 {[%emt 0:00:00]} 53. Kc3 {[%emt 0:00:27]} Kc7 {[%emt 0:00:00]} 54. Rd1 {[%emt 0:00:44]} Rf2 {[%emt 0:00:00]} 55. Bf1 {[%emt 0:00:22]} Ne5 {[%emt 0:01:01]} 56. Kd4 {[%emt 0:00:30]} Rb2 {[%emt 0:00:35]} 57. Kc3 {[%emt 0:00:28]} Rh2 {[%emt 0:00:30]} 58. Kd4 {[%emt 0:00:25]} Nc6+ {[%emt 0:01:15]} 59. Kc3 {[%emt 0:00:35]} Rh1 {[%emt 0:00:21]} 60. Re1 {[%emt 0:00:36]} Ne5 {[%emt 0:00:45]} 61. Rd1 {[%emt 0:00:29]} Nf3 {[%emt 0:01:12]} 62. Kc2 {[%emt 0:00:32]} Ne5 {[%emt 0:01:05]} 63. Kc3 {[%emt 0:00:24]} Ng6 {[%emt 0:00:42]} 64. Kd2 {[%emt 0:00:33]} Nf4 {[%emt 0:00:30]} 65. Ke3 {[%emt 0:00:32]} Nxh3 {[%emt 0:00:19]} 66. Rc1+ {[%emt 0:00:28]} Kb8 {[%emt 0:00:09]} 67. Kd4 {[%emt 0:00:30]} Nf2 {[%emt 0:00:21]} 68. Ke3 {[%emt 0:00:36]} Nxg4+ {[%emt 0:00:13]} 69. Ke2 {[%emt 0:00:31]} Nh2 {[%emt 0:00:08]} 0-1

[Event "WYCC U14 Girls 2019"]
[Site "Mumbai"]
[Date "2019.10.11"]
[Round "10.2"]
[White "Nasyrova, Ekaterina"]
[Black "Allahverdiyeva, Ayan"]
[Result "1-0"]
[ECO "A06"]
[WhiteElo "2137"]
[BlackElo "2160"]
[Annotator "NA"]
[PlyCount "89"]
[EventDate "2019.10.02"]
[EventType "swiss"]
[EventCountry "IND"]
[SourceTitle "playchess.com"]
[Source "ChessBase"]
[SourceQuality "1"]
[TimeControl "40/5400+30:1800+30"]

1. Nf3 {[%emt 0:00:00]} d5 {[%emt 0:01:33]} 2. e3 {[%emt 0:00:00]} Nf6 {[%emt 0:00:23]} 3. c4 {[%emt 0:00:00]} c6 {[%emt 0:00:03]} 4. Nc3 {[%emt 0:00:01]} a6 {[%emt 0:00:53]} 5. d4 {[%emt 0:05:31]} b5 {[%emt 0:00:29]} 6. cxd5 {[%emt 0:02:14]} cxd5 {[%emt 0:01:17]} 7. Bd3 {[%emt 0:01:23]} Bg4 {[%emt 0:02:20]} 8. O-O {[%emt 0:13:07]} Nc6 {[%emt 0:02:44]} 9. h3 {[%emt 0:00:53]} Bh5 {[%emt 0:00:31]} 10. Bd2 {[%emt 0:02:51]} Rc8 {[%emt 0:12:09]} 11. Rc1 {[%emt 0:01:09]} e5 {[%emt 0:01:34]} 12. Bf5 {[%emt 0:07:44]} e4 {[%emt 0:07:49]} 13. g4 {[%emt 0:03:12]} exf3 {[%emt 0:26:33]} 14. Qxf3 {[%emt 0:01:30]} Bg6 {[%emt 0:08:26]} 15. Bxc8 {[%emt 0:04:26]} Qxc8 {[%emt 0:01:13]} 16. Nxd5 {[%emt 0:00:58]} Ne4 {[%emt 0:00:03]} 17. Bb4 {[%emt 0:12:34]} Nf6 18. Bd2 {[%emt 0:00:00]} Ne4 {[%emt 0:01:00]} 19. Bb4 {[%emt 0:01:00]} Ng5 {[%emt 0:16:33]} 20. Qg3 {[%emt 0:01:57]} Be4 {[%emt 0:00:04]} 21. Rxc6 {[%emt 0:02:24]} Qxc6 {[%emt 0:00:58]} 22. Qb8+ {[%emt 0:00:14]} Kd7 {[%emt 0:00:33]} 23. Nb6+ {[%emt 0:00:54]} Qxb6 {[%emt 0:02:35]} 24. Qxb6 {[%emt 0:00:09]} Nf3+ {[%emt 0:00:23]} 25. Kg2 {[%emt 0:01:42]} Bxb4 {[%emt 0:00:19]} 26. Qa7+ {[%emt 0:01:24]} Ke6 {[%emt 0:00:32]} 27. Qxa6+ {[%emt 0:04:03]} Bd6 {[%emt 0:00:03]} 28. Rd1 h5 {[%emt 0:06:58]} 29. d5+ {[%emt 0:06:25]} Ke5 {[%emt 0:00:16]} 30. g5 {[%emt 0:04:48]} h4 {[%emt 0:02:30]} 31. Kf1 {[%emt 0:04:00]} Nh2+ {[%emt 0:01:21]} 32. Ke2 {[%emt 0:02:49]} Bf3+ {[%emt 0:00:15]} 33. Kd2 {[%emt 0:00:17]} Rb8 {[%emt 0:02:07]} 34. Rc1 {[%emt 0:01:45]} Bxd5 {[%emt 0:01:04]} 35. f4+ {[%emt 0:00:15]} Ke6 {[%emt 0:00:16]} 36. Kd3 {[%emt 0:02:49]} Nf1 {[%emt 0:01:06]} 37. e4 {[%emt 0:11:26]} Bb7 {[%emt 0:00:44]} 38. Qa5 {[%emt 0:01:23]} Ra8 {[%emt 0:00:11]} 39. Qc3 {[%emt 0:01:13]} Ng3 {[%emt 0:01:09]} 40. f5+ {[%emt 0:00:31]} Kd7 {[%emt 0:00:31]} 41. e5 {[%emt 0:30:52]} Bb8 {[%emt 0:30:01]} 42. e6+ {[%emt 0:00:12]} Ke8 {[%emt 0:00:53]} 43. exf7+ {[%emt 0:00:00]} Kxf7 {[%emt 0:00:00]} 44. g6+ {[%emt 0:00:00]} Ke7 {[%emt 0:00:00]} 45. Qxg7+ {[%emt 0:00:00]} 1-0

[Event "WYCC U14 Girls 2019"]
[Site "Mumbai"]
[Date "2019.10.11"]
[Round "10.3"]
[White "Rakshitta Ravi"]
[Black "Divya Deshmukh"]
[Result "1/2-1/2"]
[ECO "B50"]
[WhiteElo "2310"]
[BlackElo "2358"]
[Annotator "NA"]
[PlyCount "67"]
[EventDate "2019.10.02"]
[EventType "swiss"]
[EventCountry "IND"]
[SourceTitle "playchess.com"]
[Source "ChessBase"]
[SourceQuality "1"]
[TimeControl "40/5400+30:1800+30"]

1. e4 {[%emt 0:00:00]} c5 {[%emt 0:00:00]} 2. Nf3 {[%emt 0:00:08]} d6 {[%emt 0:00:00]} 3. Nc3 {[%emt 0:00:20]} Nf6 {[%emt 0:00:00]} 4. e5 {[%emt 0:00:19]} dxe5 {[%emt 0:01:49]} 5. Nxe5 {[%emt 0:00:11]} e6 {[%emt 0:11:15]} 6. Bb5+ {[%emt 0:01:37]} Nbd7 {[%emt 0:13:04]} 7. d4 {[%emt 0:00:33]} a6 {[%emt 0:08:37]} 8. Bxd7+ {[%emt 0:00:43]} Nxd7 {[%emt 0:00:20]} 9. Qh5 {[%emt 0:00:40]} Nxe5 {[%emt 0:08:11]} 10. dxe5 {[%emt 0:00:12]} b5 {[%emt 0:02:12]} 11. Bg5 {[%emt 0:01:34]} Be7 {[%emt 0:03:46]} 12. Rd1 {[%emt 0:09:38]} Qc7 {[%emt 0:13:46]} 13. Bxe7 {[%emt 0:00:34]} Qxe7 {[%emt 0:00:05]} 14. Ne4 {[%emt 0:00:17]} Bb7 {[%emt 0:00:38]} 15. Nd6+ {[%emt 0:02:25]} Kf8 {[%emt 0:00:01]} 16. O-O {[%emt 0:06:16]} h6 {[%emt 0:02:07]} 17. Qxf7+ {[%emt 0:20:41]} Qxf7 {[%emt 0:00:06]} 18. Nxf7 {[%emt 0:00:03]} Kxf7 {[%emt 0:00:06]} 19. Rd7+ {[%emt 0:00:03]} Kg6 {[%emt 0:00:04]} 20. Rxb7 {[%emt 0:00:04]} Rhd8 {[%emt 0:00:14]} 21. f4 {[%emt 0:00:54]} Rd2 {[%emt 0:02:59]} 22. g4 {[%emt 0:04:14]} Rf8 {[%emt 0:07:40]} 23. Re7 {[%emt 0:13:47]} Rxc2 {[%emt 0:00:29]} 24. Rxe6+ {[%emt 0:00:10]} Kh7 {[%emt 0:00:08]} 25. f5 {[%emt 0:09:26]} Rxb2 {[%emt 0:05:04]} 26. Rxa6 {[%emt 0:05:47]} c4 {[%emt 0:02:00]} 27. Ra7 {[%emt 0:13:42]} Rc8 {[%emt 0:07:28]} 28. f6 {[%emt 0:06:17]} c3 {[%emt 0:00:29]} 29. Rxg7+ {[%emt 0:00:48]} Kh8 {[%emt 0:00:00]} 30. e6 {[%emt 0:00:09]} c2 {[%emt 0:02:21]} 31. Rc7 {[%emt 0:01:52]} Rxc7 {[%emt 0:00:52]} 32. f7 {[%emt 0:01:32]} c1=Q {[%emt 0:00:32]} 33. f8=Q+ {[%emt 0:00:04]} Kh7 {[%emt 0:00:03]} 34. Qf5+ {[%emt 0:00:05]} 1/2-1/2

[Event "WYCC U14 Girls 2019"]
[Site "Mumbai"]
[Date "2019.10.11"]
[Round "10.4"]
[White "Wikar, Martyna"]
[Black "Kamalidenova, Meruert"]
[Result "0-1"]
[ECO "A45"]
[WhiteElo "1969"]
[BlackElo "2025"]
[Annotator "NA"]
[PlyCount "108"]
[EventDate "2019.10.02"]
[EventType "swiss"]
[EventCountry "IND"]
[SourceTitle "playchess.com"]
[Source "ChessBase"]
[SourceQuality "1"]
[TimeControl "40/5400+30:1800+30"]

1. d4 {[%emt 0:00:00]} Nf6 {[%emt 0:00:00]} 2. Nc3 {[%emt 0:00:03]} d5 {[%emt 0:00:00]} 3. Bf4 {[%emt 0:00:38]} e6 {[%emt 0:00:33]} 4. Nb5 {[%emt 0:00:23]} Na6 {[%emt 0:00:28]} 5. e3 {[%emt 0:00:34]} Be7 {[%emt 0:01:30]} 6. Nf3 {[%emt 0:00:54]} O-O {[%emt 0:02:04]} 7. Bd3 {[%emt 0:01:37]} c6 {[%emt 0:01:42]} 8. Nc3 {[%emt 0:00:26]} Nb4 {[%emt 0:00:36]} 9. h3 {[%emt 0:03:00]} c5 {[%emt 0:04:25]} 10. O-O {[%emt 0:01:27]} b6 {[%emt 0:04:14]} 11. Ne5 {[%emt 0:03:00]} Bb7 {[%emt 0:03:30]} 12. a3 {[%emt 0:03:51]} Nxd3 {[%emt 0:02:53]} 13. Qxd3 {[%emt 0:00:47]} a5 {[%emt 0:02:46]} 14. Nb5 {[%emt 0:05:37]} a4 {[%emt 0:06:58]} 15. b3 {[%emt 0:05:31]} Ne4 {[%emt 0:00:00]} 16. Nc3 {[%emt 0:00:00]} Nf6 {[%emt 0:00:00]} 17. Nb5 {[%emt 0:01:00]} Ne4 {[%emt 0:07:52]} 18. Nf3 {[%emt 0:09:16]} Ba6 {[%emt 0:05:37]} 19. c4 {[%emt 0:05:40]} Bxb5 {[%emt 0:01:07]} 20. cxb5 {[%emt 0:00:20]} axb3 {[%emt 0:00:09]} 21. Qxb3 {[%emt 0:01:07]} c4 {[%emt 0:00:19]} 22. Qb2 {[%emt 0:00:56]} Ra4 {[%emt 0:00:00]} 23. Qc3 {[%emt 0:00:04]} Ra8 {[%emt 0:01:00]} 24. Qb2 {[%emt 0:00:56]} Ra4 {[%emt 0:00:00]} 25. Ne5 {[%emt 0:00:00]} Ra8 {[%emt 0:01:00]} 26. Nf3 {[%emt 0:01:00]} Ra4 {[%emt 0:13:15]} 27. Ne5 {[%emt 0:03:21]} Nf6 {[%emt 0:03:03]} 28. f3 {[%emt 0:04:15]} Qa8 {[%emt 0:04:06]} 29. Nc6 {[%emt 0:02:44]} Qb7 {[%emt 0:00:31]} 30. Ra2 {[%emt 0:00:00]} Qb8 {[%emt 0:00:29]} 31. Raa1 {[%emt 0:01:00]} Qb7 {[%emt 0:00:31]} 32. Ra2 {[%emt 0:03:12]} Rfa8 {[%emt 0:06:04]} 33. Rfa1 {[%emt 0:00:15]} Bf8 {[%emt 0:02:36]} 34. Qc3 {[%emt 0:01:04]} Qd7 {[%emt 0:05:22]} 35. Be5 {[%emt 0:03:38]} Ne8 {[%emt 0:02:35]} 36. e4 {[%emt 0:02:33]} f6 {[%emt 0:02:19]} 37. Bf4 {[%emt 0:06:58]} Nd6 {[%emt 0:00:35]} 38. Bxd6 {[%emt 0:01:32]} Qxd6 {[%emt 0:00:12]} 39. exd5 {[%emt 0:02:11]} exd5 {[%emt 0:01:14]} 40. Qe3 {[%emt 0:06:52]} Qd7 {[%emt 0:06:05]} 41. Kh1 {[%emt 0:33:26]} Bd6 {[%emt 0:31:50]} 42. f4 {[%emt 0:03:35]} Re8 {[%emt 0:01:20]} 43. Qf3 {[%emt 0:01:40]} Qe6 {[%emt 0:01:13]} 44. Qd1 {[%emt 0:01:45]} Raa8 {[%emt 0:00:23]} 45. a4 {[%emt 0:02:34]} Bxf4 {[%emt 0:00:56]} 46. Rf2 {[%emt 0:05:14]} Bc7 {[%emt 0:01:21]} 47. Qf3 {[%emt 0:01:56]} Qd6 {[%emt 0:01:43]} 48. g4 {[%emt 0:00:14]} h6 {[%emt 0:01:55]} 49. h4 {[%emt 0:05:16]} Re4 {[%emt 0:01:28]} 50. h5 {[%emt 0:00:00]} Rae8 {[%emt 0:00:00]} 51. Rg1 {[%emt 0:00:00]} Re3 {[%emt 0:00:00]} 52. Qg2 {[%emt 0:00:00]} Kh8 {[%emt 0:00:00]} 53. Ra2 {[%emt 0:00:00]} Qf4 {[%emt 0:00:00]} 54. Rc2 {[%emt 0:00:00]} Qg5 {[%emt 0:00:00]} 0-1

[Event "WYCC U14 Girls 2019"]
[Site "Mumbai"]
[Date "2019.10.11"]
[Round "10.5"]
[White "Bhagyashree Patil"]
[Black "Dhyana Patel"]
[Result "1-0"]
[ECO "B35"]
[WhiteElo "1802"]
[BlackElo "1995"]
[Annotator "NA"]
[PlyCount "51"]
[EventDate "2019.10.02"]
[EventType "swiss"]
[EventCountry "IND"]
[SourceTitle "playchess.com"]
[Source "ChessBase"]
[SourceQuality "1"]
[TimeControl "40/5400+30:1800+30"]

1. e4 c5 2. Nf3 Nc6 3. d4 cxd4 4. Nxd4 g6 5. Nc3 Bg7 6. Be3 Nf6 7. Bc4 O-O 8. Bb3 a6 9. O-O Qc7 10. f4 e5 11. Nxc6 dxc6 12. fxe5 Ng4 13. Bc5 Rd8 14. Be3 Rf8 15. Bc5 Rd8 16. Rxf7 Rxd1+ 17. Rxd1 Qxf7 18. Rd8+ Bf8 19. Rxf8+ Kg7 20. Rxf7+ Kh6 21. e6 b5 22. h3 Ne5 23. Be3+ g5 24. Rf5 Nc4 25. Bxc4 bxc4 26. Rxg5 1-0

[Event "WYCC U14 Girls 2019"]
[Site "Mumbai"]
[Date "2019.10.11"]
[Round "10.6"]
[White "Velpula Sarayu"]
[Black "Hakobyan, Astghik"]
[Result "1-0"]
[ECO "C00"]
[WhiteElo "1717"]
[BlackElo "1978"]
[Annotator "NA"]
[PlyCount "118"]
[EventDate "2019.10.02"]
[EventType "swiss"]
[EventCountry "IND"]
[SourceTitle "playchess.com"]
[Source "ChessBase"]
[SourceQuality "1"]
[TimeControl "40/5400+30:1800+30"]

1. e4 {[%emt 0:00:00]} e6 {[%emt 0:00:00]} 2. d4 {[%emt 0:00:28]} d5 {[%emt 0:00:00]} 3. Bd3 {[%emt 0:00:26]} dxe4 {[%emt 0:00:02]} 4. Bxe4 {[%emt 0:00:30]} Nf6 {[%emt 0:00:05]} 5. Bf3 {[%emt 0:00:46]} c5 {[%emt 0:00:57]} 6. Ne2 {[%emt 0:02:04]} Nbd7 {[%emt 0:04:57]} 7. O-O {[%emt 0:11:58]} Bd6 {[%emt 0:02:24]} 8. Nbc3 {[%emt 0:05:48]} O-O {[%emt 0:09:36]} 9. dxc5 {[%emt 0:18:20]} Bxc5 {[%emt 0:02:30]} 10. Bf4 {[%emt 0:02:33]} Re8 {[%emt 0:05:06]} 11. Ng3 {[%emt 0:09:02]} e5 {[%emt 0:11:35]} 12. Bd2 {[%emt 0:01:20]} Qc7 {[%emt 0:02:01]} 13. Qe2 {[%emt 0:00:00]} Bd4 {[%emt 0:00:30]} 14. Rad1 {[%emt 0:00:00]} Nb6 {[%emt 0:00:30]} 15. Bg5 {[%emt 0:00:00]} Bxc3 {[%emt 0:00:30]} 16. bxc3 {[%emt 0:00:00]} Nfd7 {[%emt 0:22:04]} 17. Ne4 {[%emt 0:18:50]} f6 {[%emt 0:02:51]} 18. Nd6 {[%emt 0:03:29]} Rf8 {[%emt 0:10:50]} 19. Nb5 {[%emt 0:00:43]} Qb8 {[%emt 0:00:57]} 20. Bc1 {[%emt 0:00:50]} a6 {[%emt 0:00:36]} 21. Nd6 {[%emt 0:00:07]} Qc7 {[%emt 0:01:04]} 22. Ba3 {[%emt 0:01:12]} Rd8 {[%emt 0:02:45]} 23. Be4 {[%emt 0:02:30]} Nf8 {[%emt 0:02:03]} 24. f4 {[%emt 0:06:54]} exf4 {[%emt 0:01:11]} 25. Rxf4 {[%emt 0:01:05]} Qxc3 {[%emt 0:01:28]} 26. Rf3 {[%emt 0:03:23]} Qe5 {[%emt 0:04:19]} 27. Re3 {[%emt 0:00:37]} Qg5 {[%emt 0:00:20]} 28. Rg3 {[%emt 0:01:05]} Qe5 {[%emt 0:01:26]} 29. Re3 {[%emt 0:00:12]} Qg5 {[%emt 0:01:50]} 30. Rg3 {[%emt 0:01:03]} Qe5 {[%emt 0:00:35]} 31. c4 {[%emt 0:03:32]} Be6 {[%emt 0:01:37]} 32. Re3 {[%emt 0:01:53]} Qg5 {[%emt 0:02:04]} 33. Rg3 {[%emt 0:01:00]} Qe5 {[%emt 0:02:18]} 34. Re3 {[%emt 0:00:11]} Qg5 {[%emt 0:00:04]} 35. Rg3 {[%emt 0:00:39]} Qe5 {[%emt 0:02:30]} 36. Re3 {[%emt 0:00:06]} Qf4 {[%emt 0:00:49]} 37. Rf1 {[%emt 0:02:04]} Qh4 {[%emt 0:01:35]} 38. Bxb7 {[%emt 0:02:46]} Bxc4 {[%emt 0:01:55]} 39. Nxc4 {[%emt 0:00:27]} Qxc4 {[%emt 0:00:28]} 40. Bxa8 {[%emt 0:00:31]} Rxa8 {[%emt 0:00:43]} 41. Qxc4+ {[%emt 0:30:17]} Nxc4 {[%emt 0:30:04]} 42. Rc3 {[%emt 0:00:05]} Ne5 {[%emt 0:00:00]} 43. Bxf8 {[%emt 0:00:00]} Kxf8 {[%emt 0:00:00]} 44. Rb1 {[%emt 0:00:00]} Rd8 {[%emt 0:00:00]} 45. Rc7 {[%emt 0:00:00]} h5 {[%emt 0:00:00]} 46. Ra7 {[%emt 0:00:00]} g5 {[%emt 0:00:00]} 47. Rxa6 {[%emt 0:00:00]} Kg7 {[%emt 0:00:00]} 48. Rf1 {[%emt 0:00:00]} Rf8 {[%emt 0:00:00]} 49. a4 {[%emt 0:00:00]} g4 {[%emt 0:00:00]} 50. a5 {[%emt 0:00:00]} h4 {[%emt 0:00:00]} 51. Rb6 {[%emt 0:00:00]} h3 {[%emt 0:00:00]} 52. gxh3 {[%emt 0:00:00]} gxh3 {[%emt 0:00:00]} 53. a6 {[%emt 0:00:00]} Ra8 {[%emt 0:02:44]} 54. Rfxf6 {[%emt 0:00:00]} Rc8 {[%emt 0:03:17]} 55. Rf1 {[%emt 0:00:00]} Rc2 {[%emt 0:00:50]} 56. Rb3 {[%emt 0:00:00]} Ra2 {[%emt 0:00:20]} 57. Rg3+ {[%emt 0:00:00]} Ng6 {[%emt 0:00:01]} 58. Rxh3 {[%emt 0:00:00]} Rxa6 {[%emt 0:00:09]} 59. Rg3 {[%emt 0:00:00]} Kh6 {[%emt 0:00:31]} 1-0

[Event "WYCC U14 Girls 2019"]
[Site "Mumbai"]
[Date "2019.10.11"]
[Round "10.7"]
[White "Omonova, Umida"]
[Black "Zavivaeva, Emilia"]
[Result "1-0"]
[ECO "B33"]
[WhiteElo "2078"]
[BlackElo "1745"]
[Annotator "NA"]
[PlyCount "81"]
[EventDate "2019.10.02"]
[EventType "swiss"]
[EventCountry "IND"]
[SourceTitle "playchess.com"]
[Source "ChessBase"]
[SourceQuality "1"]
[TimeControl "40/5400+30:1800+30"]

1. e4 c5 2. Nf3 Nc6 3. d4 cxd4 4. Nxd4 Nf6 5. Nc3 e5 6. Ndb5 d6 7. Bg5 a6 8. Na3 b5 9. Nd5 Be7 10. Bxf6 Bxf6 11. c4 b4 12. Nc2 O-O 13. g3 a5 14. Bg2 Be6 15. O-O Bxd5 16. Qxd5 Qb6 17. Rad1 Rab8 18. b3 Nd4 19. Nxd4 exd4 20. Qh5 a4 21. f4 Rfe8 22. g4 d3+ 23. Kh1 Qe3 24. Qd5 Qe2 25. g5 Bc3 26. Qxd3 Qxa2 27. bxa4 Rbc8 28. Qxd6 Qxc4 29. e5 g6 30. Bd5 Qe2 31. Qd7 Rf8 32. e6 Rcd8 33. exf7+ Kg7 34. Qb5 Qxb5 35. axb5 Rd6 36. Bc4 Rfd8 37. Rxd6 Rxd6 38. f5 gxf5 39. Rxf5 Kf8 40. Rc5 Rd8 41. b6 1-0